bitfinex-derivatives/quotes_ETHF0:USTF0_20250923
["timestamp","ask_amount","ask_price","bid_price","bid_amount"]
[1758626530591,1.72812692,4189.7,4189.6,1.17382]
[1758626530892,1.72812692,4189.7,4189.6,0.4125]
[1758626531189,1.72812692,4189.7,4189.6,0.2027]
[1758626531386,1.29881692,4189.7,4189.6,1.17382]
[1758626531588,1.72812692,4189.7,4189.6,1.17382]
[1758626532185,1.29881692,4189.7,4189.6,1.17382]
[1758626532587,1.72812692,4189.7,4189.6,1.17382]
[1758626532787,1.72812692,4189.7,4189.6,0.63202]
[1758626533084,1.29881692,4189.7,4189.6,0.63202]
[1758626533283,1.29881692,4189.7,4189.6,1.17382]
[1758626533692,1.72812692,4189.7,4189.6,1.17382]
[1758626534195,1.72812692,4189.7,4189.6,0.4125]
[1758626534395,1.72812692,4189.7,4189.6,0.84182]
[1758626535389,1.72812692,4189.7,4189.6,1.16882]
[1758626535588,0.744,4189.2,4189.1,0.87337]
[1758626535801,0.744,4189.2,4189.1,1.44137]
[1758626536201,0.5385,4189.2,4189.1,1.44137]
[1758626536500,0.4293,4189.8,4189.7,0.42931]
[1758626536501,0.9678,4189.8,4189.7,0.42931]
[1758626536708,1.27358529,4189.8,4189.7,1.20031]
[1758626537598,0.52958529,4189.8,4189.7,1.20031]
[1758626537802,0.3312,4190.1,4190.0,0.87327]
[1758626538002,0.5385,4190.1,4190.0,1.20027]
[1758626539800,0.58004944,4190.4,4190.3,1.20024]
[1758626540107,0.58004944,4190.4,4190.3,1.44124]
[1758626541208,0.24884944,4190.4,4190.3,1.44124]
[1758626541701,0.58004944,4190.4,4190.3,1.44124]
[1758626542606,0.5385,4190.4,4190.3,1.44124]
[1758626544805,0.5385,4190.6,4190.5,0.64892]
[1758626544999,0.5385,4190.6,4190.5,1.20022]
[1758626545709,0.96771,4190.6,4190.5,1.20022]
[1758626546213,0.5385,4190.6,4190.5,1.20022]
[1758626546408,0.96771,4190.6,4190.5,1.20022]
[1758626547109,1.17321,4190.6,4190.5,1.20022]
[1758626547914,1.17321,4190.6,4190.5,0.771]
[1758626548208,1.17321,4190.6,4190.5,1.20022]
[1758626553424,1.17321,4190.6,4190.5,0.771]
[1758626553605,0.42923,4190.5,4190.4,0.42923]
[1758626553917,1.29873,4190.5,4190.4,0.65353]
[1758626554117,1.29873,4190.5,4190.4,0.98053]
[1758626554317,1.29873,4190.5,4190.4,0.89453]
[1758626554615,1.29873,4190.5,4190.4,0.4653]
[1758626554817,1.29873,4190.5,4190.4,0.89453]
[1758626556118,8.14177,4190.3,4190.2,0.2197]
[1758626556312,8.14177,4190.3,4190.2,1.11425]
[1758626556817,8.47297,4190.3,4190.2,1.42035]
[1758626557219,8.67847,4190.3,4190.2,1.11425]
[1758626557822,9.10771,4190.3,4190.2,1.11425]
[1758626558417,8.67847,4190.3,4190.2,1.42035]
[1758626558819,8.26567,4190.3,4190.2,1.42035]
[1758626559320,8.47297,4190.3,4190.2,1.42035]
[1758626560321,9.10771,4190.3,4190.2,0.89455]
[1758626560815,8.67847,4190.3,4190.2,0.89455]
[1758626561516,8.67847,4190.3,4190.2,1.11425]
[1758626564125,9.10771,4190.3,4190.2,1.11425]
[1758626564322,9.10771,4190.3,4190.2,0.89455]
[1758626564524,8.67847,4190.3,4190.2,0.89455]
[1758626565123,9.10771,4190.3,4190.2,0.89455]
[1758626565325,9.10771,4190.3,4190.2,0.67025]
[1758626566117,8.67847,4190.3,4190.2,0.67025]
[1758626566517,9.10771,4190.3,4190.2,0.67025]
[1758626567126,8.67847,4190.3,4190.2,0.67025]
[1758626567723,8.67847,4190.3,4190.2,0.87845]
[1758626568525,8.67847,4190.3,4190.2,1.10235]
[1758626568829,7.93447,4190.3,4190.2,1.40865]
[1758626569520,8.24377,4190.3,4190.2,1.40865]
[1758626570519,7.93447,4190.3,4190.2,1.40865]
[1758626571918,8.24377,4190.3,4190.2,1.40865]
[1758626572727,7.93447,4190.3,4190.2,5.40865]
[1758626572920,0.5665,4191.0,4190.9,0.7664]
[1758626573125,1.09662545,4191.0,4190.9,1.0074]
[1758626573325,0.5665,4191.0,4190.9,1.43658]
[1758626574526,0.5665,4191.0,4190.9,0.67018]
[1758626574928,0.8758,4191.0,4190.9,0.67018]
[1758626576126,1.30497,4191.0,4190.9,0.67018]
[1758626576627,0.8758,4191.0,4190.9,0.42918]
[1758626576932,0.8758,4191.0,4190.9,0.67018]
[1758626577126,1.30497,4191.0,4190.9,0.42918]
[1758626577431,1.30497,4191.0,4190.9,0.67018]
[1758626577628,1.83485336,4191.0,4190.9,0.67018]
[1758626578629,1.83485336,4191.0,4190.9,0.42918]
[1758626578831,0.86738,4190.9,4190.8,0.42919]
[1758626579030,1.17668,4190.9,4190.8,0.67019]
[1758626580132,1.17668,4190.9,4190.8,0.42919]
[1758626580329,0.2233,4190.0,4189.9,0.2082]
[1758626580529,0.8746,4190.5,4190.4,0.42923]
[1758626580826,0.8746,4190.5,4190.4,1.21273]
[1758626581932,0.8746,4190.5,4190.4,0.87843]
[1758626583331,0.99452,4190.5,4190.4,0.67023]
[1758626583933,1.30382,4190.5,4190.4,0.67023]
[1758626584131,1.17673,4190.4,4190.3,0.42924]
[1758626584330,1.70663629,4190.4,4190.3,0.67024]
[1758626585535,0.7475,4190.4,4190.3,1.43664]
[1758626585926,1.17673,4190.4,4190.3,0.42924]
[1758626586126,1.17673,4190.4,4190.3,0.67024]
[1758626586735,0.7475,4190.4,4190.3,0.67024]
[1758626587638,1.17673,4190.4,4190.3,0.67024]
[1758626587939,0.7475,4190.4,4190.3,0.67024]
[1758626588331,0.7475,4190.4,4190.3,0.87844]
[1758626588637,0.7475,4190.4,4190.3,1.21274]
[1758626589341,1.17673,4190.4,4190.3,0.87844]
[1758626589544,1.17673,4190.4,4190.3,0.4492]
[1758626589744,0.7475,4190.4,4190.3,0.87844]
[1758626592538,1.17673,4190.4,4190.3,0.87844]
[1758626593539,1.17673,4190.4,4190.3,0.42924]
[1758626593741,0.1271,4190.5,4189.8,0.9591]
[1758626593742,0.4306,4189.9,4189.8,0.9591]
[1758626593937,0.7525,4189.9,4189.8,1.2001]
[1758626594240,0.7525,4189.9,4189.8,0.6703]
[1758626594541,0.7525,4189.9,4189.8,1.2001]
[1758626595238,0.7525,4189.9,4189.8,0.879]
[1758626596543,0.7525,4189.9,4189.8,0.6703]
[1758626598439,0.7525,4189.9,4189.8,0.4293]
[1758626598652,1.18179,4189.9,4189.8,0.4293]
[1758626598939,1.18179,4189.9,4189.4,1.07334]
[1758626598940,1.10664,4189.5,4189.4,0.42934]
[1758626599139,1.85986247,4189.5,4189.4,0.42934]
[1758626600146,1.32954,4189.5,4189.4,0.42934]
[1758626600443,1.32953,4189.5,4189.4,0.97194]
[1758626603336,1.32953,4189.5,4189.4,0.5426]
[1758626603539,1.32953,4189.5,4189.4,0.42934]
[1758626604449,1.19504,4189.4,4189.3,0.7836]
[1758626605445,1.19504,4189.4,4189.3,1.21295]
[1758626605943,1.19504,4189.4,4189.3,0.7836]
[1758626606541,1.19504,4189.4,4189.3,1.21295]
[1758626608543,0.42937,4189.2,4189.1,0.42936]
[1758626608846,1.19507,4189.2,4189.1,1.21296]
[1758626609748,0.86838,4189.1,4189.0,0.42937]
[1758626609945,1.19508,4189.1,4189.0,0.42937]
[1758626610343,0.7657,4189.1,4188.8,0.76289]
[1758626610549,1.32958,4189.0,4188.9,0.67039]
[1758626611049,1.32958,4189.0,4188.7,0.6385]
[1758626611050,1.1951,4188.8,4188.7,0.6385]
[1758626611349,1.1951,4188.8,4188.7,1.213]
[1758626611546,1.1951,4188.8,4188.7,1.4237]
[1758626611748,0.7657,4188.8,4188.7,1.4237]
[1758626612556,1.1951,4188.8,4188.7,1.4237]
[1758626614061,1.1951,4188.8,4188.7,1.213]
[1758626614462,0.7657,4188.8,4188.7,1.4237]
[1758626614764,1.1951,4188.8,4188.7,1.4237]
[1758626616768,1.1951,4188.8,4188.7,0.9943]
[1758626617068,1.1951,4188.8,4188.7,1.42371]
[1758626617265,1.1951,4188.8,4188.7,0.9943]
[1758626618159,1.1951,4188.8,4188.7,1.42371]
[1758626623472,1.1951,4188.8,4188.7,0.9943]
[1758626623868,0.42944,4188.4,4188.3,0.65244]
[1758626624071,1.19864,4188.4,4188.3,0.7774]
[1758626624770,1.19864,4188.4,4188.3,1.20685]
[1758626625075,0.7692,4188.4,4188.3,1.41795]
[1758626626275,0.75529,4188.9,4188.8,0.223]
[1758626626472,1.72899915,4188.9,4188.8,0.7475]
[1758626627376,1.72899915,4188.9,4188.8,1.1769]
[1758626627777,1.72899915,4188.9,4188.8,0.7475]
[1758626628073,1.29960915,4188.9,4188.7,0.42941]
[1758626628277,1.40310915,4188.8,4188.7,0.65241]
[1758626628477,1.72900915,4188.8,4188.7,0.96581]
[1758626630679,1.72900915,4188.8,4188.7,1.17691]
[1758626631383,1.29960915,4188.8,4188.7,1.17691]
[1758626631580,1.72900915,4188.8,4188.7,1.17691]
[1758626632880,1.29960915,4188.8,4188.7,1.17691]
[1758626633281,1.72900915,4188.8,4188.7,1.17691]
[1758626634871,1.72900915,4188.8,4188.7,0.7475]
[1758626636287,1.72900915,4188.8,4188.7,1.17691]
[1758626637683,1.72900915,4188.8,4188.7,0.7475]
[1758626639085,1.72900915,4188.8,4188.7,1.17691]
[1758626639286,1.72900915,4188.8,4188.7,0.7475]
[1758626639584,1.72900915,4188.8,4188.7,1.17691]
[1758626641190,1.29960915,4188.8,4188.7,1.17691]
[1758626642285,0.53040915,4188.8,4188.7,5.41564]
[1758626642487,0.3259,4189.6,4189.5,0.99363]
[1758626642691,0.5498,4189.8,4189.7,0.86341]
[1758626642887,0.5498,4189.8,4189.7,1.17681]
[1758626643188,0.7692,4189.8,4189.7,1.17681]
[1758626643388,0.3259,4189.9,4189.8,1.17679]
[1758626643593,0.3259,4190.4,4190.1,0.42926]
[1758626643889,0.5498,4190.2,4190.1,0.86336]
[1758626644092,0.7692,4190.2,4190.1,0.86336]
[1758626644288,0.7692,4190.2,4190.1,1.17676]
[1758626644692,0.5498,4190.2,4190.1,1.17676]
[1758626644993,0.5498,4190.4,4190.3,0.86334]
[1758626645494,0.3259,4190.4,4190.3,1.17674]
[1758626645683,0.5498,4190.4,4190.3,1.17674]
[1758626645879,0.5498,4190.4,4190.3,0.7475]
[1758626646090,0.7692,4190.4,4190.3,0.7475]
[1758626650486,0.7692,4190.4,4190.3,1.17674]
[1758626650892,0.3259,4190.8,4190.5,0.42922]
[1758626651084,0.4292,4190.8,4190.6,0.42921]
[1758626651287,0.979,4190.8,4190.7,0.7475]
[1758626651991,0.979,4190.8,4190.7,1.1767]
[1758626652592,0.979,4190.8,4190.7,0.7475]
[1758626653895,1.1984,4190.8,4190.7,0.7475]
[1758626654286,0.4292,4190.8,4190.7,0.7475]
[1758626654497,0.7454,4190.8,4190.7,0.9885]
[1758626654688,0.9564,4190.8,4190.7,0.9885]
[1758626655995,0.5272,4190.8,4190.7,1.4177]
[1758626656194,0.42919,4190.8,4190.7,1.4177]
[1758626657691,0.95099,4190.8,4190.7,0.9885]
[1758626657899,0.95099,4190.8,4190.7,1.4177]
[1758626658793,0.42917,4191.0,4190.7,0.9885]
[1758626658995,0.5218,4191.1,4191.0,0.866]
[1758626660092,0.95096,4191.1,4191.0,0.866]
[1758626660393,1.16546,4191.1,4191.0,0.7437]
[1758626661500,1.16546,4191.1,4191.0,1.17287]
[1758626662100,0.7363,4191.1,4191.0,1.17287]
[1758626663095,1.16546,4191.1,4191.0,1.17287]
[1758626664201,0.7363,4191.1,4191.0,1.17287]
[1758626664598,1.16546,4191.1,4191.0,0.95347]
[1758626664802,0.42923,4190.4,4189.9,1.07321]
[1758626665007,0.42923,4190.4,4189.7,6.35926]
[1758626665008,1.16553,4190.4,4190.3,0.64864]
[1758626665602,1.16553,4190.4,4190.3,0.95804]
[1758626665903,1.16553,4190.4,4190.3,1.19904]
[1758626666105,1.16553,4190.4,4190.3,0.4604]
[1758626666304,1.16555,4190.2,4190.0,0.42927]
[1758626666507,1.16555,4190.2,4190.1,0.88966]
[1758626666806,1.16555,4190.2,4190.1,1.19906]
[1758626667195,0.7363,4190.2,4190.1,1.19906]
[1758626667391,1.16555,4190.2,4190.1,1.41396]
[1758626668994,1.16555,4190.2,4190.1,1.41296]
[1758626669712,0.7363,4190.2,4190.1,1.41296]
[1758626670202,0.5218,4190.2,4190.1,1.41296]
[1758626670408,0.64133,4190.5,4190.4,0.86353]
[1758626670601,0.64133,4190.5,4190.4,1.17293]
[1758626670807,0.95103,4190.5,4190.4,1.17293]
[1758626672106,0.95103,4190.5,4190.4,0.7437]
[1758626672308,0.95103,4190.5,4190.4,1.17293]
[1758626672807,1.16553,4190.5,4190.4,0.7437]
[1758626673307,1.16553,4190.5,4190.4,1.17293]
[1758626674602,1.29973,4190.5,4190.4,0.7437]
[1758626674801,1.82725227,4190.5,4190.4,0.9837]
[1758626675512,1.16553,4190.5,4190.4,1.41293]
[1758626675701,1.16553,4190.5,4190.4,0.9837]
[1758626676203,1.69314047,4190.5,4190.4,0.9837]
[1758626676401,1.69314047,4190.5,4190.4,1.41293]
[1758626676603,1.69314047,4190.5,4190.4,0.9837]
[1758626678403,1.69314047,4190.5,4190.4,1.41293]
[1758626678604,1.69314047,4190.5,4190.4,0.9837]
[1758626679303,1.69314047,4190.5,4190.4,1.41293]
[1758626680309,1.26391047,4190.5,4190.4,1.41293]
[1758626681413,1.69313047,4190.5,4190.4,1.41293]
[1758626681714,1.26391047,4190.5,4190.4,1.41293]
[1758626682010,1.69313047,4190.5,4190.4,1.41293]
[1758626683216,1.82733047,4190.5,4190.4,0.9837]
[1758626683615,1.82733047,4190.5,4190.4,1.41293]
[1758626685211,1.82733047,4190.5,4190.4,0.66923]
[1758626685511,1.82733047,4190.5,4190.4,0.24]
[1758626685916,1.82733047,4190.5,4190.4,0.66923]
[1758626686713,0.42924,4190.3,4190.2,0.96345]
[1758626686913,1.20144,4190.3,4190.2,1.20345]
[1758626687316,0.7722,4190.3,4190.2,1.41875]
[1758626687821,1.20144,4190.3,4190.2,1.41875]
[1758626691919,0.42927,4190.0,4189.9,0.42928]
[1758626692117,1.00067,4190.0,4189.9,0.66928]
[1758626692323,1.52882728,4190.0,4189.9,0.88468]
[1758626692518,1.86142728,4190.0,4189.9,1.20348]
[1758626694327,1.86142728,4190.0,4189.9,1.41878]
[1758626694725,1.72962728,4190.0,4189.9,1.41878]
[1758626696726,1.86142728,4190.0,4189.9,1.17878]
[1758626697027,1.2015,4189.8,4189.7,0.6447]
[1758626697228,1.2015,4189.8,4189.7,0.6693]
[1758626697726,1.2015,4189.8,4189.7,0.24]
[1758626698030,1.33333,4189.5,4189.4,0.96353]
[1758626698223,1.33333,4189.5,4189.4,1.20353]
[1758626698527,1.33333,4189.5,4189.4,1.41883]
[1758626703623,1.33333,4189.5,4189.4,0.9895]
[1758626703827,1.33333,4189.5,4189.4,1.41884]
[1758626705231,1.33333,4189.5,4189.4,1.17884]
[1758626705531,1.33333,4189.5,4189.4,1.41884]
[1758626706232,1.33333,4189.5,4189.4,0.9895]
[1758626706417,0.42938,4189.0,4188.9,0.3188]
[1758626706623,1.33338,4189.0,4188.9,0.88479]
[1758626706830,0.904,4189.0,4188.9,1.41889]
[1758626708429,0.7722,4189.0,4188.9,1.41889]
[1758626709129,0.5714,4189.5,4189.4,1.17884]
[1758626709434,1.52791786,4189.5,4189.4,1.17884]
[1758626709636,1.86051786,4189.5,4189.4,1.17884]
[1758626711431,1.86051786,4189.5,4189.4,0.2154]
[1758626712737,1.86051786,4189.5,4189.2,0.96356]
[1758626712738,1.20155,4189.3,4189.2,0.96356]
[1758626714835,1.20155,4189.3,4189.2,0.5342]
[1758626715038,0.7579,4189.1,4189.0,0.64447]
[1758626715341,1.18727,4189.1,4189.0,0.88448]
[1758626715546,1.18727,4189.1,4189.0,1.20168]
[1758626715954,0.7579,4189.1,4189.0,1.41258]
[1758626717352,1.18727,4189.1,4189.0,1.41258]
[1758626718956,1.18727,4189.1,4189.0,0.9832]
[1758626720054,1.18727,4189.1,4189.0,0.7432]
[1758626720256,1.18727,4189.1,4189.0,0.9832]
[1758626720947,1.18727,4189.1,4189.0,0.4551]
[1758626722152,1.18727,4189.1,4189.0,0.7723]
[1758626722351,1.18727,4189.1,4189.0,0.4551]
[1758626722753,1.18727,4189.1,4189.0,0.9832]
[1758626723050,0.7579,4189.1,4189.0,1.41258]
[1758626723255,0.64775,4189.3,4189.2,0.7446]
[1758626723453,1.50297362,4189.3,4189.2,1.17396]
[1758626724756,1.50297362,4189.3,4189.2,0.7446]
[1758626725452,0.2184,4189.0,4188.9,0.5337]
[1758626725648,1.32008,4189.0,4188.9,0.7737]
[1758626725846,0.97388,4189.0,4188.9,1.41399]
[1758626727556,0.97388,4189.0,4188.9,0.9846]
[1758626727759,1.19508,4189.0,4188.9,0.9846]
[1758626728461,1.19508,4189.0,4188.9,1.41399]
[1758626728661,1.19508,4189.0,4188.9,0.9846]
[1758626728863,1.19508,4189.0,4188.9,1.41399]
[1758626729363,1.19508,4189.0,4188.9,0.9846]
[1758626730061,1.32008,4189.0,4188.9,0.9846]
[1758626730657,1.32008,4189.0,4188.9,1.41399]
[1758626731059,0.7657,4189.0,4188.9,1.41399]
[1758626731259,0.5445,4189.0,4188.9,1.41399]
[1758626731752,0.97388,4189.0,4188.9,1.41399]
[1758626732365,1.50383628,4189.0,4188.9,1.41399]
[1758626734164,1.17773628,4189.0,4188.9,1.41399]
[1758626734569,1.50383628,4189.0,4188.9,1.41399]
[1758626735267,1.07445628,4189.0,4188.9,1.41399]
[1758626735463,1.50383628,4189.0,4188.9,1.41399]
[1758626735967,1.07445628,4189.0,4188.9,1.41399]
[1758626736155,0.74835628,4189.0,4188.9,1.41399]
[1758626736361,1.07445628,4189.0,4188.9,1.41399]
[1758626736568,1.50383628,4189.0,4188.9,1.41399]
[1758626737569,1.29565628,4189.0,4188.9,1.41399]
[1758626737864,1.72503628,4189.0,4188.9,1.17399]
[1758626738065,1.72503628,4189.0,4188.9,1.41399]
[1758626738568,1.29565628,4189.0,4188.9,1.41399]
[1758626739466,1.72503628,4189.0,4188.9,1.41399]
[1758626739662,1.72503628,4189.0,4188.9,0.9846]
[1758626740471,1.72503628,4189.0,4188.9,1.41399]
[1758626741971,1.85003628,4189.0,4188.9,1.41399]
[1758626742269,1.85003628,4189.0,4188.9,1.17399]
[1758626742470,1.85003628,4189.0,4188.9,1.41399]
[1758626743567,1.42065628,4189.0,4188.9,1.17399]
[1758626743774,1.85003628,4189.0,4188.9,1.41399]
[1758626744066,1.85003628,4189.0,4188.9,0.7446]
[1758626744275,1.1998,4188.9,4188.8,0.9565]
[1758626744569,1.72975628,4188.9,4188.8,1.1965]
[1758626744769,1.72975628,4188.9,4188.8,1.4171]
[1758626745272,1.30035628,4188.9,4188.8,1.4171]
[1758626746676,1.72974628,4188.9,4188.8,1.4171]
[1758626748077,1.30035628,4188.9,4188.8,1.4171]
[1758626748474,1.72974628,4188.9,4188.8,1.4171]
[1758626749282,1.30035628,4188.9,4188.8,1.4171]
[1758626751981,0.5496,4189.1,4189.0,0.64378]
[1758626752185,1.08040155,4189.1,4189.0,1.30138]
[1758626753582,1.50977155,4189.1,4189.0,1.30138]
[1758626753781,1.08040155,4189.1,4189.0,1.30138]
[1758626756389,0.74590155,4189.1,4189.0,1.30138]
[1758626756995,1.50977155,4189.1,4189.0,1.30138]
[1758626757182,1.73057155,4189.1,4189.0,1.30138]
[1758626757384,1.73057155,4189.1,4189.0,1.17708]
[1758626759092,1.30120155,4189.1,4189.0,1.17708]
[1758626760885,0.53080155,4189.1,4189.0,1.30138]
[1758626761487,0.12202661,4189.1,4189.0,1.5401]
[1758626761688,0.7704,4189.6,4189.5,0.86433]
[1758626761883,1.19972,4189.6,4189.5,0.7477]
[1758626762094,0.2208,4189.0,4188.9,1.17709]
[1758626762288,0.7704,4189.0,4188.9,1.41709]
[1758626763392,0.7704,4189.0,4188.7,0.3127]
[1758626763393,0.5641,4189.0,4188.7,0.3127]
[1758626763593,0.42943,4188.5,4188.1,0.2144]
[1758626763892,0.4359,4188.3,4188.2,1.19656]
[1758626764092,0.7704,4188.3,4188.2,1.19656]
[1758626764597,1.19985,4188.3,4188.2,0.88386]
[1758626764896,0.7704,4188.3,4188.2,0.66946]
[1758626765094,1.19985,4188.3,4188.2,0.24]
[1758626765399,0.4359,4188.1,4188.0,0.42947]
[1758626765594,0.7704,4188.1,4188.0,0.88387]
[1758626765792,0.5496,4188.1,4188.0,1.41717]
[1758626766094,0.7704,4188.1,4188.0,1.41718]
[1758626773106,1.19987,4188.1,4188.0,0.24]
[1758626773594,1.20652,4188.0,4187.5,0.2125]
[1758626773905,1.20621,4187.7,4187.6,0.24]
[1758626776007,1.20621,4187.7,4187.6,0.66952]
[1758626776302,1.20621,4187.7,4187.6,0.24]
[1758626778907,0.74,4187.2,4187.1,0.5142]
[1758626779098,0.74,4187.2,4187.1,1.39277]
[1758626779608,1.16956,4187.2,4187.1,0.87327]
[1758626779810,1.16956,4187.2,4187.1,0.66957]
[1758626780113,0.74,4187.2,4187.1,0.66957]
[1758626780308,0.74,4187.2,4187.1,0.87327]
[1758626780508,0.74,4187.2,4187.1,0.63327]
[1758626780708,1.16956,4187.2,4187.1,0.94377]
[1758626780909,1.16956,4187.2,4187.1,1.18377]
[1758626781517,0.74,4187.2,4187.1,1.18377]
[1758626781704,0.74,4187.2,4187.1,1.39277]
[1758626782414,0.5183,4187.2,4187.1,1.15277]
[1758626782617,0.1328,4188.0,4187.3,0.7232]
[1758626782913,0.42944,4188.4,4188.3,0.42945]
[1758626783114,0.74,4188.4,4188.3,0.94365]
[1758626783712,1.16944,4188.4,4188.3,0.94365]
[1758626784718,0.74,4188.4,4188.3,0.94365]
[1758626786213,0.74,4188.4,4188.3,1.15265]
[1758626788418,1.07344,4189.1,4188.3,1.15265]
[1758626788419,0.1306,4190.5,4188.3,4.23876]
[1758626788613,0.4306,4189.7,4189.6,0.5142]
[1758626788819,0.4306,4189.7,4189.6,1.15252]
[1758626790919,0.2089,4189.7,4189.6,1.15252]
[1758626791312,0.25045286,4190.0,4189.9,1.15248]
[1758626791513,0.78378807,4190.0,4189.9,1.15248]
[1758626795320,0.25045286,4190.0,4189.9,1.15248]
[1758626798030,0.90142286,4190.0,4189.9,1.15248]
[1758626798331,0.47215286,4190.0,4189.9,1.15248]
[1758626798731,0.90142286,4190.0,4189.9,1.15248]
[1758626799235,1.11552286,4190.0,4189.9,0.3105]
[1758626799827,1.11552286,4190.0,4189.9,0.5142]
[1758626800030,0.47215286,4190.0,4189.9,1.15248]
[1758626800242,0.90142286,4190.0,4189.9,1.15248]
[1758626801628,0.90142286,4190.0,4189.9,0.7232]
[1758626802534,1.11552286,4190.0,4189.9,0.7232]
[1758626802736,1.11552286,4190.0,4189.9,0.5142]
[1758626802936,1.11552286,4190.0,4189.9,0.3105]
[1758626803734,1.11552286,4190.0,4189.9,0.5142]
[1758626804642,0.2133,4190.7,4190.0,0.133]
[1758626804937,1.09634,4191.5,4191.4,0.7551]
[1758626805138,0.4286,4191.5,4191.4,0.7551]
[1758626807839,0.47013436,4191.5,4191.4,0.7551]
[1758626809741,0.4286,4191.5,4191.4,0.7551]
[1758626809947,0.85772,4191.5,4191.4,0.7551]
[1758626810138,0.89925436,4191.5,4191.4,0.7551]
[1758626811038,1.11255436,4191.5,4191.4,0.5366]
[1758626811244,1.11255436,4191.5,4191.4,0.3311]
[1758626812043,0.85776,4191.1,4191.0,0.6696]
[1758626812246,1.07106,4191.1,4191.0,0.6696]
[1758626813742,1.11259823,4191.1,4191.0,0.6696]
[1758626813945,1.11259823,4191.1,4191.0,0.4641]
[1758626814145,1.11259823,4191.1,4191.0,0.3311]
[1758626815943,1.11259823,4191.1,4191.0,0.5366]
[1758626816144,1.11259823,4191.1,4191.0,0.6696]
[1758626816543,1.11259823,4191.1,4190.1,0.424]
[1758626816544,0.2133,4190.7,4190.1,0.424]
[1758626816749,0.63861,4190.6,4190.5,0.557]
[1758626817051,0.63861,4190.6,4190.5,0.8881]
[1758626817648,0.04153823,4191.1,4191.0,0.133]
[1758626817846,0.68009823,4191.1,4191.0,0.8881]
[1758626818048,1.21273139,4191.1,4191.0,0.8881]
[1758626818346,1.43193139,4191.1,4191.0,0.8881]
[1758626821451,1.00333139,4191.1,4191.0,0.8881]
[1758626821646,0.57417139,4191.1,4191.0,1.31727]
[1758626821852,0.04153823,4191.1,4191.0,1.31727]
[1758626824153,0.42913,4191.4,4191.3,0.42914]
[1758626824447,0.96201857,4191.4,4191.3,1.18424]
[1758626826146,0.53288857,4191.4,4191.3,1.18424]
[1758626826346,0.42912,4191.6,4191.5,0.8881]
[1758626826546,0.96209809,4191.6,4191.5,0.8881]
[1758626828948,1.17149809,4191.6,4191.5,0.8881]
[1758626834059,1.39069809,4191.6,4191.5,0.8881]
[1758626834566,1.60479809,4191.6,4191.5,0.3311]
[1758626834970,0.85766,4191.1,4191.0,0.8724]
[1758626835169,0.85766,4191.1,4191.0,1.1134]
[1758626835170,1.39063809,4191.1,4191.0,1.1134]
[1758626835470,1.39063809,4191.1,4191.0,1.54257]
[1758626835670,0.53297809,4191.1,4191.0,1.54257]
[1758626835862,0.42914,4191.3,4191.1,0.7234]
[1758626836063,0.53461994,4191.2,4191.1,1.15256]
[1758626838368,0.04153426,4191.7,4191.6,1.15251]
[1758626838872,0.47063426,4191.7,4191.6,1.15251]
[1758626839070,0.57605181,4191.7,4191.6,1.15251]
[1758626840072,1.00515181,4191.7,4191.6,0.7234]
[1758626840370,1.00515181,4191.7,4191.6,0.9644]
[1758626840577,1.21665181,4191.7,4191.6,0.9644]
[1758626841778,0.78755181,4191.7,4191.6,1.39351]
[1758626842273,0.57605181,4191.7,4191.6,1.39351]
[1758626843280,0.42908,4191.9,4191.8,0.4182]
[1758626843473,0.96319027,4191.9,4191.8,0.7234]
[1758626845878,1.17469027,4191.9,4191.8,0.7234]
[1758626847771,1.38089027,4191.9,4191.8,0.7234]
[1758626849576,1.59449027,4191.9,4191.8,0.511]
[1758626849879,1.59449027,4191.9,4191.8,0.3052]
[1758626850680,1.06041,4191.6,4191.5,0.3052]
[1758626850876,1.59479194,4191.6,4191.5,0.3052]
[1758626851383,1.59479194,4191.6,4191.0,1.0964]
[1758626851384,0.84686,4191.1,4191.0,1.0964]
[1758626852180,0.64066,4191.1,4191.0,1.52557]
[1758626852785,0.64066,4191.1,4191.0,1.0964]
[1758626853086,0.64066,4191.1,4191.0,1.52557]
[1758626853278,0.64066,4191.1,4191.0,0.8564]
[1758626853482,1.59509444,4191.1,4191.0,0.644]
[1758626859075,1.38149444,4191.1,4191.0,0.644]
[1758626859682,1.59509444,4191.1,4191.0,0.644]
[1758626863491,1.59509444,4191.1,4191.0,0.3052]
[1758626864378,1.0642,4190.7,4190.6,0.2169]
[1758626864579,1.06421,4190.6,4190.5,0.3499]
[1758626864783,1.59855616,4190.6,4190.5,0.3499]
[1758626864990,1.38495616,4190.6,4190.5,0.6556]
[1758626865490,1.38495616,4190.6,4190.5,0.8578]
[1758626867493,1.59855616,4190.6,4190.5,0.8578]
[1758626869601,1.38495616,4190.6,4190.5,0.8578]
[1758626870088,1.59855616,4190.6,4190.5,0.8578]
[1758626870393,1.06421,4190.6,4190.5,0.8578]
[1758626873397,0.85061,4190.6,4190.5,0.8578]
[1758626875199,1.38475907,4190.6,4190.5,0.8578]
[1758626888710,1.38475907,4190.6,4190.5,1.28702]
[1758626888893,0.53414907,4190.6,4190.5,1.28702]
[1758626889092,0.96335907,4190.6,4190.5,1.28702]
[1758626890805,0.96335907,4190.6,4190.5,0.8578]
[1758626891003,1.38475907,4190.6,4190.5,0.8578]
[1758626891203,1.59835907,4190.6,4190.5,0.8578]
[1758626891507,0.53414907,4190.6,4190.5,1.28702]
[1758626891701,1.17695907,4190.6,4190.5,1.28702]
[1758626892398,0.53414907,4190.6,4190.5,1.28702]
[1758626893206,0.96335907,4190.6,4190.5,1.28702]
[1758626893705,0.53414907,4190.6,4190.5,1.28702]